fUST/lending_fUST_20241128
["ID","MTS","AMOUNT","RATE_DAILY","PERIOD"]
[343587827,1732739446986,-1000.0,0.00031265,60]
[343587828,1732739446996,-163.1963577,0.00031267,2]
[343587829,1732739447006,-174.29433202,0.00031267,2]
[343587830,1732739447015,-500.0,0.00031267,2]
[343587831,1732739447025,-158.71986153,0.00031267,2]
[343587832,1732739447034,-269.46371488,0.00031267,2]
[343587833,1732739447043,-151.0,0.00031268,7]
[343587834,1732739447053,-271.072077,0.00031268,7]
[343587835,1732739447063,-181.774904,0.00031268,7]
[343587836,1732739447072,-181.774904,0.00031268,7]
[343587837,1732739447081,-181.774904,0.00031268,7]
[343587838,1732739447090,-181.774904,0.00031268,7]
[343587839,1732739447100,-181.774904,0.00031268,7]
[343587840,1732739447110,-181.774904,0.00031268,7]
[343587841,1732739447119,-181.774904,0.00031268,7]
[343587842,1732739447129,-181.774904,0.00031268,7]
[343587843,1732739447138,-181.774904,0.00031268,7]
[343587844,1732739447150,-181.774904,0.00031268,7]
[343587845,1732739447160,-181.774904,0.00031268,7]
[343587846,1732739447170,-181.774904,0.00031268,7]
[343587847,1732739447179,-181.774904,0.00031268,7]
[343587848,1732739447188,-181.774904,0.00031268,7]
[343587849,1732739447197,-181.774904,0.00031268,7]
[343587850,1732739447206,-181.774904,0.00031268,7]
[343587851,1732739447216,-181.774904,0.00031268,7]
[343587852,1732739447225,-181.774904,0.00031268,7]
[343587853,1732739447234,-181.774904,0.00031268,7]
[343587854,1732739447243,-181.774902,0.00031268,7]
[343587855,1732739447253,-151.0,0.00031268,7]
[343587856,1732739447262,-151.0,0.00031268,7]
[343587857,1732739447272,-151.0,0.00031268,7]
[343587858,1732739447281,-151.0,0.00031268,7]
[343587859,1732739447290,-151.0,0.00031268,7]
[343587860,1732739447300,-151.0,0.00031268,7]
[343587861,1732739447309,-151.0,0.00031268,7]
[343587862,1732739447319,-151.0,0.00031268,7]
[343587863,1732739447328,-151.0,0.00031268,7]
[343587864,1732739447338,-151.0,0.00031268,7]
[343587865,1732739447347,-151.0,0.00031268,7]
[343587866,1732739447356,-151.0,0.00031268,7]
[343587867,1732739447366,-151.0,0.00031268,7]
[343587868,1732739447375,-151.0,0.00031268,7]
[343587869,1732739447384,-151.0,0.00031268,7]
[343587870,1732739447394,-151.0,0.00031268,7]
[343587871,1732739447414,-151.0,0.00031268,7]
[343587872,1732739447423,-151.0,0.00031268,7]
[343587873,1732739447433,-227.183566,0.00031268,7]
[343587874,1732739447442,-151.0,0.00031268,7]
[343587875,1732739447451,-685.370349,0.00031268,7]
[343587876,1732739447461,-685.370349,0.00031268,7]
[343587877,1732739447470,-685.370349,0.00031268,7]
[343587878,1732739447479,-685.370349,0.00031268,7]
[343587879,1732739447489,-685.370349,0.00031268,7]
[343587880,1732739447503,-685.370349,0.00031268,7]
[343587881,1732739447516,-685.370349,0.00031268,7]
[343587882,1732739447525,-685.370349,0.00031268,7]
[343587883,1732739447534,-685.370349,0.00031268,7]
[343587884,1732739447544,-685.370349,0.00031268,7]
[343587885,1732739447555,-685.370349,0.00031268,7]
[343587886,1732739447568,-685.370349,0.00031268,7]
[343587887,1732739447578,-685.370349,0.00031268,7]
[343587888,1732739447588,-685.370349,0.00031268,7]
[343587889,1732739447597,-685.370349,0.00031268,7]
[343587890,1732739447606,-685.370349,0.00031268,7]
[343587891,1732739447616,-685.370349,0.00031268,7]
[343587892,1732739447625,-685.370349,0.00031268,7]
[343587893,1732739447635,-685.370349,0.00031268,7]
[343587894,1732739447644,-685.370351,0.00031268,7]
[343587895,1732739447654,-151.0,0.00031268,7]
[343587896,1732739447663,-151.0,0.00031268,7]
[343587897,1732739447673,-151.0,0.00031268,7]
[343587898,1732739447683,-151.0,0.00031268,7]
[343587899,1732739447692,-152.89163,0.00031268,7]
[343587900,1732739447702,-151.0,0.00031268,7]
[343587901,1732739447714,-151.0,0.00031268,7]
[343587902,1732739447723,-151.0,0.00031268,7]
[343587903,1732739447732,-151.0,0.00031268,7]
[343587904,1732739447743,-151.0,0.00031268,7]
[343587905,1732739447752,-151.0,0.00031268,7]
[343587906,1732739447761,-151.0,0.00031268,7]
[343587907,1732739447770,-151.0,0.00031268,7]
[343587908,1732739447781,-151.0,0.00031268,7]
[343587909,1732739447793,-151.0,0.00031268,7]
[343587910,1732739447802,-151.0,0.00031268,7]
[343587911,1732739447812,-151.0,0.00031268,7]
[343587912,1732739447822,-151.0,0.00031268,7]
[343587913,1732739447832,-151.0,0.00031268,7]
[343587914,1732739447841,-151.0,0.00031268,7]
[343587915,1732739447851,-151.0,0.00031268,7]
[343587916,1732739447860,-151.0,0.00031268,7]
[343587917,1732739447872,-154.095923,0.00031268,7]
[343587918,1732739447883,-151.0,0.00031268,7]
[343587919,1732739447893,-151.0,0.00031268,7]
[343587920,1732739447908,-151.0,0.00031268,7]
[343587921,1732739447920,-151.0,0.00031268,7]
[343587922,1732739447930,-151.0,0.00031268,7]
[343587923,1732739447939,-151.0,0.00031268,7]
[343587924,1732739447949,-188.146915,0.00031268,7]
[343587925,1732739447958,-5000.0,0.00031268,2]
[343587926,1732739447968,-5000.0,0.00031268,2]
[343587927,1732739447978,-2553.572044,0.00031268,2]
[343587928,1732739447987,-25360.18241037,0.00031268,10]
[343587935,1732739694542,165.735037,0.00013973,2]
[343587937,1732740372342,165.870378,0.00013973,2]
[343587938,1732740444127,-1318.64095654,0.00026926,2]
[343587939,1732740444149,-1635.54500454,0.00027198,2]
[343587944,1732740558157,-378.79847962,0.00027198,2]
[343588326,1732740635213,-172.4523716,0.00026637,2]
[343588327,1732740635223,-460.67446926,0.00027198,2]
[343588328,1732740635235,-636.48227958,0.00027198,2]
[343588329,1732740635244,-500.0,0.00027721,3]
[343588330,1732740635253,-516.54,0.00027721,3]
[343588331,1732740635263,-300.0,0.00027721,2]
[343588332,1732740635272,-300.0,0.00027721,2]
[343588333,1732740635282,-24900.0,0.00027722,2]
[343588334,1732740635292,-3098.0761224,0.00027821,2]
[343588335,1732740635301,-170.871729,0.00028339,2]
[343588336,1732740635311,-500.0,0.00028789,3]
[343588338,1732740635424,-1975.87185967,0.0002879,5]
[343588340,1732740635438,-197.063,0.0002879,20]
[343588342,1732740635451,-291.48516421,0.0002879,3]
[343588344,1732740635460,-295.60508638,0.0002879,3]
[343588346,1732740635470,-468.31893824,0.0002879,3]
[343588348,1732740635481,-500.0,0.0002879,3]
[343588350,1732740635490,-4064.08582052,0.0002879,2]
[343588352,1732740635503,-935.91417948,0.0002879,2]
[343588354,1732740635512,-5000.0,0.0002879,2]
[343588356,1732740635521,-500.0,0.0002879,3]
[343588358,1732740635531,-500.0,0.0002879,3]
[343588360,1732740635540,-500.0,0.0002879,3]
[343588362,1732740635550,-500.0,0.0002879,3]
[343588364,1732740635560,-500.0,0.0002879,3]
[343588366,1732740635570,-500.0,0.0002879,3]
[343588368,1732740635580,-500.0,0.0002879,3]
[343588370,1732740635590,-64.58582052,0.0002879,3]
[343588645,1732740638342,-435.41417948,0.0002879,3]
[343588647,1732740638352,-500.0,0.0002879,3]
[343588649,1732740638362,-500.0,0.0002879,3]
[343588651,1732740638371,-520.42,0.0002879,3]
[343588653,1732740638381,-570.79215873,0.0002879,2]
[343588655,1732740638390,-170.11628644,0.00028817,2]
[343588657,1732740638400,-500.0,0.00028973,5]
[343588659,1732740638409,-505.29528961,0.00028973,5]
[343588661,1732740638420,-188.06496296,0.00028973,5]
[343588663,1732740638429,-500.0,0.00028973,5]
[343588665,1732740638438,-500.0,0.00028973,5]
[343588667,1732740638448,-216.43313492,0.00028973,5]
[343588668,1732740638457,-500.45506807,0.00028973,2]
[343588670,1732740638466,-500.0,0.00028973,5]
[343588672,1732740638476,-500.0,0.00028973,5]
[343588674,1732740638486,-671.39,0.0002899,3]
[343588676,1732740638496,-335.7,0.0002899,3]
[343588679,1732740638506,-167.85,0.0002899,3]
[343588681,1732740638515,-503.56,0.0002899,3]
[343588682,1732740638525,-538.62460041,0.00028999,2]
[343588685,1732740638535,-500.0,0.00028999,2]
[343588687,1732740638544,-5000.0,0.00028999,2]
[343588688,1732740638554,-5000.0,0.00028999,2]
[343588690,1732740638563,-5000.0,0.00028999,2]
[343588692,1732740638573,-1115.72196732,0.00028999,2]
[343588695,1732740638582,-487.35539382,0.00028999,2]
[343588696,1732740638591,-500.0,0.00028999,2]
[343588698,1732740638603,-500.0,0.00028999,2]
[343588702,1732740638624,-171.38255227,0.00028999,2]
[343588704,1732740638636,-500.0,0.00028999,2]
[343588706,1732740638645,-500.0,0.00028999,2]
[343588708,1732740638655,-500.0,0.00028999,2]
[343588710,1732740638667,-500.0,0.00028999,2]
[343588712,1732740638680,-500.0,0.00028999,2]
[343588714,1732740638690,-500.0,0.00028999,2]
[343588716,1732740638700,-500.0,0.00028999,2]
[343588718,1732740638709,-163.16309996,0.00028999,2]
[343588720,1732740638719,-197.06403891,0.00028999,2]
[343588722,1732740638729,-500.0,0.00028999,2]
[343588724,1732740638738,-331.17477522,0.00028999,2]
[343588726,1732740638748,-500.0,0.00028999,2]
[343588728,1732740638757,-224.57204848,0.00028999,2]
[343588730,1732740638767,-500.0,0.00028999,2]
[343588732,1732740638776,-500.0,0.00028999,2]
[343588734,1732740638785,-500.0,0.00028999,2]
[343588736,1732740638795,-500.0,0.00028999,2]
[343588738,1732740638805,-500.0,0.00028999,2]
[343588740,1732740638814,-500.0,0.00028999,2]
[343588742,1732740638823,-500.0,0.00028999,2]
[343588744,1732740638833,-644.96396868,0.00028999,2]
[343588746,1732740638843,-500.0,0.00028999,2]
[343588748,1732740638853,-520.7019209,0.00028999,2]
[343588750,1732740638862,-500.0,0.00028999,2]
[343588752,1732740638872,-491.25820433,0.00028999,3]
[343588754,1732740638881,-5648.78373958,0.00029,2]
[343588756,1732740638891,-1599.19601589,0.00029,15]
[343588758,1732740638904,-2847.51851751,0.00029,15]
[343588871,1732740640012,-307.22,0.00029,15]
[343588873,1732740640023,-2909.0,0.00029,15]
[343588878,1732740640073,-6089.78749999,0.00029,15]
[343588881,1732740640085,-1078.04026663,0.00029,15]
[343589162,1732740642977,-22254.10999999,0.00029,15]
[343589164,1732740642989,-21657.28638349,0.00029,15]
[343589170,1732740643034,-24699.05118359,0.00029,15]
[343589172,1732740643046,-10446.42542968,0.00029,15]
[343589174,1732740643058,-3398.76670594,0.00029,15]
[343595382,1732740743687,835.06,0.00026,60]
[343595384,1732741076573,165.870378,0.00013973,2]
[343595385,1732741630151,-292.63305733,0.0002277,2]
[343595386,1732741630175,-252.317392,0.00024932,2]
[343595387,1732741630196,-500.0,0.00025,2]
[343595388,1732741630219,-500.0,0.00025,2]
[343595389,1732741630240,-334.66757769,0.00025,2]
[343595390,1732741630267,-584.52803448,0.00025003,2]
[343595398,1732741800722,165.870378,0.00013973,2]
[343595423,1732741832197,-369.56087715,0.00022864,2]
[343595425,1732741832206,-264.17,0.00023095,2]
[343595427,1732741832215,-7728.0435744,0.00024935,2]
[343595429,1732741832225,-300.0,0.00025001,2]
[343595431,1732741832235,-300.0,0.00025001,2]
[343595433,1732741832244,-1440.0,0.00025001,2]
[343595435,1732741832253,-2311.01163972,0.00025003,2]
[343595437,1732741832263,-873.36402258,0.00025726,2]
[343595439,1732741832272,-500.0,0.00025825,3]
[343595441,1732741832282,-595.71306628,0.00025825,3]
[343595443,1732741832291,-500.0,0.00025825,3]
[343595445,1732741832300,-500.0,0.00025825,3]
[343595447,1732741832310,-500.0,0.00025825,3]
[343595449,1732741832320,-500.0,0.00025825,3]
[343595451,1732741832329,-500.0,0.00025825,3]
[343595453,1732741832339,-500.0,0.00025825,3]
[343595455,1732741832348,-500.0,0.00025825,3]
[343595457,1732741832357,-500.0,0.00025825,3]
[343595459,1732741832367,-500.0,0.00025825,3]
[343595461,1732741832376,-500.0,0.00025825,3]
[343595463,1732741832386,-500.0,0.00025825,3]
[343595465,1732741832395,-500.0,0.00025825,3]
[343595466,1732741832405,-5000.0,0.00025825,2]
[343595467,1732741832415,-500.0,0.00025825,3]
[343595468,1732741832425,-913.89879193,0.00025826,2]
[343595469,1732741832437,-500.0,0.00025826,3]
[343595470,1732741832451,-500.0,0.00025826,3]
[343595471,1732741832461,-500.0,0.00025826,3]
[343595472,1732741832471,-500.0,0.00025826,3]
[343595473,1732741832481,-500.0,0.00025826,3]
[343595474,1732741832493,-500.0,0.00025826,3]
[343595475,1732741832504,-500.0,0.00025826,3]
[343595476,1732741832514,-500.0,0.00025826,3]
[343595477,1732741832525,-500.0,0.00025826,3]
[343595478,1732741832534,-500.0,0.00025826,3]
[343595479,1732741832544,-500.0,0.00025826,3]
[343595480,1732741832554,-500.0,0.00025826,3]
[343595481,1732741832564,-500.0,0.00025826,3]
[343595482,1732741832574,-500.0,0.00025826,3]
[343595483,1732741832584,-500.0,0.00025826,3]
[343595484,1732741832594,-500.0,0.00025826,3]
[343595485,1732741832604,-500.0,0.00025826,3]
[343595486,1732741832614,-500.0,0.00025826,3]
[343595487,1732741832624,-500.0,0.00025826,3]
[343595488,1732741832634,-500.0,0.00025826,3]
[343595489,1732741832646,-500.0,0.00025826,3]
[343595490,1732741832655,-500.0,0.00025826,3]
[343595491,1732741832665,-500.0,0.00025826,3]
[343595492,1732741832674,-500.0,0.00025826,3]
[343595493,1732741832685,-500.0,0.00025826,3]
[343595494,1732741832696,-535.9,0.00025826,3]
[343595495,1732741832705,-505.29817363,0.00025826,3]
[343595496,1732741832715,-500.0,0.00025826,3]
[343595497,1732741832724,-500.0,0.00025826,3]
[343595498,1732741832734,-500.0,0.00025826,3]
[343595499,1732741832743,-500.0,0.00025826,3]
[343595500,1732741832754,-500.0,0.00025826,3]
[343595501,1732741832764,-500.0,0.00025826,3]
[343595502,1732741832774,-500.0,0.00025826,3]
[343595503,1732741832785,-500.0,0.00025826,3]
[343595504,1732741832795,-500.0,0.00025826,3]
[343595505,1732741832805,-500.0,0.00025826,3]
[343595506,1732741832814,-500.0,0.00025826,3]
[343595507,1732741832824,-500.0,0.00025826,3]
[343595508,1732741832833,-500.0,0.00025826,3]
[343595509,1732741832843,-500.0,0.00025826,3]
[343595510,1732741832852,-566.44,0.00025826,3]
[343595511,1732741832861,-500.0,0.00025826,3]
[343595512,1732741832871,-500.0,0.00025826,3]
[343595513,1732741832880,-5000.0,0.00025826,2]
[343595514,1732741832890,-500.0,0.00025826,3]
[343595515,1732741832899,-500.0,0.00025826,3]
[343595516,1732741832909,-395.98861059,0.00025826,2]
[343595517,1732741832919,-24900.0,0.00025826,2]
[343595518,1732741832929,-202.0,0.00026,2]
[343595519,1732741832941,-164.8457538,0.0002606,2]
[343595520,1732741832950,-173.983722,0.00026159,2]
[343595521,1732741832960,-500.0,0.00026704,3]
[343595522,1732741832969,-500.0,0.00026704,3]
[343595523,1732741832980,-500.0,0.00026704,3]
[343595524,1732741832989,-500.0,0.00026704,3]
[343595525,1732741832999,-500.0,0.00026704,3]
[343595526,1732741833008,-500.0,0.00026704,3]
[343595527,1732741833018,-500.0,0.00026704,3]
[343595528,1732741833028,-5000.0,0.00026704,2]
[343595529,1732741833037,-420.0,0.00027084,2]
[343595530,1732741833047,-195.12312738,0.00027098,2]
[343595531,1732741833057,-420.0,0.00027501,2]
[343595532,1732741833067,-301.04648952,0.00027621,2]
[343595533,1732741833077,-506.34,0.00027708,10]
[343595534,1732741833091,-391.64,0.00027709,3]
[343595535,1732741833101,-195.82,0.00027709,3]
[343595536,1732741833114,-587.5,0.00027709,3]
[343595537,1732741833124,-729.12,0.00027709,10]
[343595538,1732741833134,-607.6,0.00027709,10]
[343595539,1732741833145,-500.0,0.0002771,3]
[343595540,1732741833155,-500.0,0.0002771,3]
[343595541,1732741833165,-566.44,0.0002771,3]
[343595542,1732741833174,-500.0,0.0002771,3]
[343595543,1732741833186,-500.0,0.00027717,3]
[343595544,1732741833196,-5000.0,0.00027717,2]
[343595545,1732741833206,-302.73022761,0.00027717,2]
[343595546,1732741833216,-516.10710763,0.00027717,2]
[343595547,1732741833225,-203.46386391,0.00027717,2]
[343595548,1732741833236,-500.0,0.00027718,3]
[343595549,1732741833246,-500.0,0.00027718,3]
[343595550,1732741833256,-154.42,0.00027718,3]
[343595551,1732741833266,-566.44,0.00027718,3]
[343595552,1732741833276,-5000.0,0.00027718,2]
[343595553,1732741833285,-5000.0,0.00027718,2]
[343595554,1732741833295,-5000.0,0.00027718,2]
[343595555,1732741833305,-500.0,0.00027719,3]
[343595556,1732741833315,-500.0,0.00027719,3]
[343595557,1732741833325,-564.56931499,0.00027719,3]
[343595558,1732741833334,-500.0,0.00027719,3]
[343595559,1732741833344,-534.03502771,0.00027719,3]
[343595560,1732741833354,-500.0,0.00027719,3]
[343595561,1732741833364,-500.0,0.00027719,3]
[343595562,1732741833373,-500.0,0.00027719,3]
[343595563,1732741833383,-500.0,0.00027719,3]
[343595564,1732741833393,-500.0,0.00027719,3]
[343595565,1732741833403,-552.4115607,0.00027719,3]
[343595566,1732741833413,-501.30861907,0.00027719,3]
[343595567,1732741833423,-500.0,0.00027719,3]
[343595568,1732741833433,-500.0,0.00027719,3]
[343595569,1732741833444,-506.70999776,0.00027719,3]
[343595570,1732741833455,-500.0,0.00027719,3]
[343595571,1732741833467,-500.0,0.00027719,3]
[343595572,1732741833477,-500.0,0.00027719,3]
[343595573,1732741833486,-500.0,0.00027719,3]
[343595574,1732741833497,-500.0,0.00027719,3]
[343595575,1732741833507,-500.0,0.00027719,3]
[343595576,1732741833517,-500.0,0.00027719,3]
[343595577,1732741833527,-500.0,0.00027719,3]
[343595578,1732741833541,-163.94486905,0.00027719,3]
[343595579,1732741833552,-500.0,0.00027719,3]
[343595580,1732741833562,-206.69,0.00027719,3]
[343595581,1732741833572,-500.0,0.00027719,3]
[343595582,1732741833582,-500.0,0.00027719,3]
[343595583,1732741833591,-500.0,0.00027719,3]
[343595584,1732741833602,-500.0,0.00027719,3]
[343595585,1732741833611,-500.0,0.00027719,3]
[343595586,1732741833620,-500.0,0.00027719,3]
[343595587,1732741833630,-500.0,0.00027719,3]
[343595588,1732741833640,-500.0,0.00027719,3]
[343595589,1732741833651,-500.0,0.00027719,3]
[343595590,1732741833660,-500.0,0.00027719,3]
[343595591,1732741833671,-500.0,0.00027719,3]
[343595592,1732741833680,-500.0,0.00027719,3]
[343595593,1732741833692,-500.0,0.00027719,3]
[343595594,1732741833702,-280.56074932,0.00027719,3]
[343595595,1732741833711,-500.0,0.00027719,3]
[343595596,1732741833722,-500.0,0.00027719,3]
[343595597,1732741833732,-500.0,0.00027719,3]
[343595598,1732741833743,-500.0,0.00027719,3]
[343595599,1732741833753,-500.0,0.00027719,3]
[343595600,1732741833763,-515.52900489,0.00027719,3]
[343595601,1732741833772,-500.0,0.00027719,3]
[343595602,1732741833782,-500.0,0.00027719,3]
[343595603,1732741833792,-500.0,0.00027719,3]
[343595604,1732741833802,-500.0,0.00027719,3]
[343595605,1732741833812,-500.0,0.00027719,3]
[343595606,1732741833821,-500.0,0.00027719,3]
[343595607,1732741833831,-517.21365722,0.00027719,3]
[343595608,1732741833842,-500.0,0.00027719,3]
[343595609,1732741833851,-500.0,0.00027719,3]
[343595610,1732741833861,-500.80737839,0.00027719,3]
[343595611,1732741833871,-500.0,0.00027719,3]
[343595612,1732741833880,-500.0,0.00027719,3]
[343595613,1732741833890,-500.0,0.00027719,3]
[343595614,1732741833900,-520.33589777,0.00027719,3]
[343595615,1732741833912,-500.0,0.00027719,3]
[343595616,1732741833922,-500.0,0.00027719,3]
[343595617,1732741833933,-500.0,0.00027719,3]
[343595618,1732741833946,-500.0,0.00027719,3]
[343595619,1732741833956,-586.20705799,0.00027719,3]
[343595620,1732741833965,-500.0,0.00027719,3]
[343595621,1732741833975,-500.0,0.00027719,3]
[343595622,1732741833985,-500.0,0.00027719,3]
[343595623,1732741833994,-500.0,0.00027719,3]
[343595624,1732741834005,-500.0,0.00027719,3]
[343595625,1732741834014,-500.0,0.00027719,3]
[343595626,1732741834024,-500.0,0.00027719,3]
[343595627,1732741834034,-500.0,0.00027719,3]
[343595628,1732741834150,-500.0,0.00027719,3]
[343595629,1732741834160,-172.74230675,0.00027719,3]
[343595630,1732741834170,-300.23100625,0.00027719,3]
[343595631,1732741834179,-500.0,0.00027719,3]
[343595632,1732741834191,-500.0,0.00027719,3]
[343595633,1732741834200,-525.75367652,0.00027719,3]
[343595634,1732741834210,-500.0,0.00027719,3]
[343595635,1732741834219,-500.0,0.00027719,3]
[343595636,1732741834230,-500.0,0.00027719,3]
[343595637,1732741834240,-500.0,0.00027719,3]
[343595638,1732741834251,-500.0,0.00027719,3]
[343595639,1732741834261,-500.0,0.00027719,3]
[343595640,1732741834271,-500.0,0.00027719,3]
[343595641,1732741834280,-500.0,0.00027719,3]
[343595642,1732741834290,-500.0,0.00027719,3]
[343595643,1732741834300,-500.0,0.00027719,3]
[343595644,1732741834310,-500.0,0.00027719,3]
[343595645,1732741834319,-517.43356836,0.00027719,3]
[343595646,1732741834329,-236.21311701,0.00027719,3]
[343595647,1732741834339,-371.01876954,0.00027719,3]
[343595648,1732741834348,-532.17670151,0.00027719,3]
[343595649,1732741834358,-500.0,0.00027719,3]
[343595650,1732741834368,-500.0,0.00027719,3]
[343595651,1732741834379,-500.0,0.00027719,3]
[343595652,1732741834388,-500.0,0.00027719,3]
[343595653,1732741834398,-500.0,0.00027719,3]
[343595654,1732741834409,-500.0,0.00027719,3]
[343595655,1732741834419,-500.0,0.00027719,3]
[343595656,1732741834429,-500.0,0.00027719,3]
[343595657,1732741834442,-500.0,0.00027719,3]
[343595658,1732741834457,-500.0,0.00027719,3]
[343595659,1732741834467,-500.0,0.00027719,3]
[343595660,1732741834477,-566.44,0.00027719,3]
[343595661,1732741834487,-566.44,0.00027719,3]
[343595662,1732741834499,-4501.56743276,0.00027719,2]
[343595663,1732741834509,-500.0,0.0002772,3]
[343595664,1732741834519,-500.0,0.0002772,3]
[343595665,1732741834530,-500.0,0.0002772,3]
[343595666,1732741834540,-500.0,0.0002772,3]
[343595667,1732741834549,-264.94,0.0002772,3]
[343595668,1732741834559,-519.51693828,0.0002772,3]
[343595669,1732741834569,-500.0,0.0002772,3]
[343595670,1732741834579,-500.0,0.0002772,3]
[343595671,1732741834589,-501.94050419,0.0002772,3]
[343595672,1732741834598,-509.36292658,0.0002772,3]
[343595673,1732741834608,-502.61116062,0.0002772,3]
[343595674,1732741834619,-500.0,0.0002772,3]
[343595675,1732741834629,-500.0,0.0002772,3]
[343595676,1732741834639,-566.44,0.0002772,3]
[343595677,1732741834649,-197.063,0.00027721,17]
[343595678,1732741834659,-500.0,0.00027721,3]
[343595679,1732741834669,-500.0,0.00027721,3]
[343595680,1732741834679,-500.0,0.00027721,3]
[343595681,1732741834692,-566.44,0.00027772,3]
[343595682,1732741834702,-500.0,0.00027773,5]
[343595683,1732741834711,-500.0,0.00027773,5]
[343595684,1732741834721,-200.14093674,0.00027773,2]
[343595685,1732741834730,-327.12121404,0.00027773,2]
[343595686,1732741834740,-500.0,0.00027773,5]
[343595687,1732741834749,-516.58117383,0.00027773,5]
[343595688,1732741834759,-278.71318978,0.00027773,2]
[343595689,1732741834768,-500.0,0.00027773,5]
[343595690,1732741834778,-374.01344576,0.00027773,2]
[343595691,1732741834787,-163.17944407,0.00027773,5]
[343595692,1732741834796,-500.0,0.00027773,5]
[343595693,1732741834806,-500.0,0.00027773,5]
[343595694,1732741834815,-506.95754395,0.00027773,5]
[343595695,1732741834825,-169.50081643,0.00028068,2]
[343595696,1732741834835,-7427.56860928,0.00028301,2]
[343595697,1732741834844,-500.0,0.00028321,5]
[343595698,1732741834854,-500.0,0.00028321,5]
[343595699,1732741834863,-543.28327931,0.00028321,5]
[343595700,1732741834873,-500.0,0.00028321,5]
[343595701,1732741834882,-1000.0,0.00028321,5]
[343595702,1732741834892,-35380.62120403,0.00028517,2]
[343595703,1732741834901,-7427.56860928,0.00028517,2]
[343595704,1732741834910,-205.149087,0.00028674,7]
[343595705,1732741834920,-205.149087,0.00028674,7]
[343595706,1732741834930,-185.393897,0.00028674,7]
[343595707,1732741834944,-155.042005,0.000287,14]
[343595708,1732741834953,-396.06,0.00028778,3]
[343595709,1732741834962,-566.44,0.00028787,3]
[343595710,1732741834972,-609.51300108,0.0002879,3]
[343595711,1732741834981,-500.0,0.0002879,2]
[343595712,1732741834990,-500.0,0.0002879,3]
[343595713,1732741834999,-526.89,0.0002879,3]
[343595714,1732741835009,-151.0,0.000288,14]
[343595715,1732741835018,-151.0,0.000288,16]
[343595716,1732741835028,-706.93813931,0.000288,2]
[343595717,1732741835037,-706.93813931,0.00028825,2]
[343595718,1732741835046,-706.93813931,0.0002885,2]
[343595719,1732741835055,-151.0,0.00028855,7]
[343595720,1732741835064,-151.0,0.00028855,7]
[343595721,1732741835073,-183.530337,0.00028855,7]
[343595722,1732741835082,-275.042462,0.00028855,7]
[343595723,1732741835092,-275.042462,0.00028855,7]
[343595724,1732741835101,-566.44,0.00028872,3]
[343595725,1732741835110,-500.0,0.00028873,5]
[343595726,1732741835119,-500.0,0.00028873,5]
[343595727,1732741835128,-500.0,0.00028873,5]
[343595728,1732741835138,-706.93813931,0.00028875,2]
[343595729,1732741835147,-151.0,0.00028898,7]
[343595730,1732741835156,-275.042462,0.00028898,7]
[343595731,1732741835164,-275.042462,0.00028898,7]
[343595732,1732741835174,-566.44,0.00028898,3]
[343595733,1732741835183,-242.76441621,0.00028899,2]